bitfinex-derivatives/quotes_BTCF0:USTF0_20210409
["timestamp","ask_amount","ask_price","bid_price","bid_amount"]
[1617963342241,0.2,58402.0,58401.0,0.27]
[1617963342441,0.2,58402.0,58388.0,0.01]
[1617963342642,0.2,58402.0,58387.0,0.10725655]
[1617963342643,1.0,58397.0,58387.0,0.10725655]
[1617963342841,0.10725655,58391.0,58390.0,0.27]
[1617963343142,0.10725655,58391.0,58388.0,0.01]
[1617963343442,1.10725655,58391.0,58390.0,0.27]
[1617963343642,0.10725655,58391.0,58388.0,0.27]
[1617963343842,1.0,58390.0,58388.0,0.27]
[1617963344044,0.2,58389.0,58387.0,0.10725655]
[1617963344342,1.2,58389.0,58376.0,0.27570954]
[1617963344566,1.2,58389.0,58388.0,0.27]
[1617963344843,1.2,58389.0,58378.0,0.27]
[1617963344844,1.7,58389.0,58378.0,0.27]
[1617963345045,2.7,58389.0,58377.0,0.01]
[1617963345251,2.7,58389.0,58375.0,0.2757552]
[1617963345446,1.0,58379.0,58369.0,0.27602723]
[1617963345662,1.2,58378.0,58376.0,0.27]
[1617963345945,1.2,58378.0,58361.0,0.40483994]
[1617963345946,1.0,58377.0,58373.0,0.27]
[1617963346145,1.2,58377.0,58361.0,0.27623527]
[1617963346346,1.2,58377.0,58362.0,0.01]
[1617963346544,0.2,58377.0,58371.0,0.27]
[1617963346845,0.10725655,58372.0,58364.0,0.10725655]
[1617963347046,1.10725655,58372.0,58364.0,0.10725655]
[1617963347446,1.10725655,58372.0,58365.0,0.26]
[1617963347646,0.10725655,58372.0,58365.0,0.26]
[1617963348479,0.10725655,58372.0,58365.0,0.35705]
[1617963348886,0.10725655,58372.0,58371.0,0.10725655]
[1617963349262,0.10725655,58372.0,58371.0,0.37725655]
[1617963349848,0.10725655,58372.0,58371.0,0.47599655]
[1617963350048,3.5018,58391.0,58371.0,0.47599655]
[1617963350579,2.5018,58391.0,58371.0,0.47599655]
[1617963350817,1.0,58389.0,58371.0,0.47599655]
[1617963351048,0.2,58388.0,58371.0,0.27]
[1617963351361,1.2,58388.0,58371.0,0.27]
[1617963351549,1.0,58386.0,58367.0,0.01]
[1617963351750,1.5,58410.0,58362.0,1.5]
[1617963351751,1.0,58395.0,58372.0,3.2586]
[1617963351951,1.0,58395.0,58372.0,3.37029]
[1617963352155,1.0,58394.0,58372.0,3.10029]
[1617963352352,1.0,58394.0,58373.0,0.26]
[1617963352952,1.0,58393.0,58390.0,0.10725655]
[1617963353454,0.2,58395.0,58391.0,0.27]
[1617963354155,1.0,58392.0,58373.0,0.27]
[1617963354355,3.7907,58391.0,58373.0,0.27]
[1617963354555,1.5,58390.0,58370.0,0.01]
[1617963354757,1.0,58374.0,58370.0,0.01]
[1617963354955,0.10725655,58371.0,58368.0,0.10725655]
[1617963355356,0.10725655,58371.0,58369.0,0.25]
[1617963360972,1.10725655,58371.0,58369.0,0.25]
[1617963361369,1.0,58370.0,58369.0,0.25]
[1617963361572,1.14576,58370.0,58367.0,0.27]
[1617963361970,1.14576,58370.0,58369.0,0.05]
[1617963362171,1.14576,58370.0,58369.0,0.0001]
[1617963362371,0.14576,58370.0,58368.0,0.27]
[1617963362573,0.14576,58370.0,58369.0,0.05]
[1617963362574,1.14576,58370.0,58369.0,0.05]
[1617963362972,0.14576,58370.0,58367.0,0.21]
[1617963363173,1.14576,58370.0,58369.0,0.06]
[1617963363574,1.14576,58370.0,58368.0,0.22]
[1617963363774,0.14576,58370.0,58369.0,0.06]
[1617963363975,1.84576,58370.0,58369.0,0.06]
[1617963364177,0.34576,58370.0,58365.0,0.25]
[1617963364376,0.34576,58370.0,58362.0,0.01]
[1617963364677,1.23,58369.0,58366.0,0.24]
[1617963364977,0.2,58369.0,58363.0,0.01]
[1617963365180,0.2,58369.0,58359.0,0.27986538]
[1617963365378,0.14576,58370.0,58367.0,0.25]
[1617963365678,0.10725655,58371.0,58364.0,0.01]
[1617963365878,1.0,58368.0,58359.0,0.27986538]
[1617963366079,1.0,58368.0,58366.0,0.27]
[1617963366379,0.10725655,58371.0,58359.0,0.27986538]
[1617963366579,0.10725655,58371.0,58367.0,0.27]
[1617963367078,0.10725655,58371.0,58360.0,0.01]
[1617963367280,0.10725655,58371.0,58359.0,0.28003065]
[1617963367492,0.10725655,58371.0,58361.0,0.27]
[1617963367881,1.60725655,58371.0,58359.0,0.28003065]
[1617963368081,1.60725655,58371.0,58362.0,0.27]
[1617963368488,1.60725655,58371.0,58360.0,0.27]
[1617963368685,1.60725655,58371.0,58363.0,0.27]
[1617963368927,0.10725655,58371.0,58363.0,0.27]
[1617963369134,0.10725655,58364.0,58360.0,0.27]
[1617963369339,0.10725655,58364.0,58356.0,0.10725655]
[1617963369582,1.0,58361.0,58357.0,0.01]
[1617963369787,1.0,58361.0,58356.0,0.10725655]
[1617963369982,1.0,58357.0,58356.0,0.10725655]
[1617963370383,1.0,58357.0,58356.0,0.37725655]
[1617963370582,0.10725655,58364.0,58356.0,0.37725655]
[1617963370882,1.0,58357.0,58356.0,0.37725655]
[1617963371084,0.10725655,58357.0,58356.0,0.65740741]
[1617963371583,1.10725655,58357.0,58356.0,0.65740741]
[1617963371783,1.23121655,58357.0,58356.0,0.65740741]
[1617963371984,1.23121655,58357.0,58356.0,0.37725655]
[1617963372183,0.23121655,58357.0,58356.0,0.37725655]
[1617963372527,0.23121655,58357.0,58356.0,0.65751162]
[1617963372884,0.10725655,58357.0,58356.0,0.65751162]
[1617963373485,2.8752,58372.0,58356.0,0.65751162]
[1617963373697,1.0,58375.0,58363.0,3.6692]
[1617963374195,1.0,58375.0,58364.0,0.27]
[1617963375087,1.0,58376.0,58374.0,0.10725655]
[1617963375288,1.0,58376.0,58374.0,0.20892655]
[1617963375486,0.10725655,58379.0,58375.0,0.27]
[1617963375785,3.6273,58403.0,58375.0,0.27]
[1617963375786,1.0,58398.0,58375.0,0.27]
[1617963377089,1.0,58398.0,58391.0,0.10725655]
[1617963377290,1.0,58399.0,58391.0,0.24064655]
[1617963377492,1.0,58408.0,58392.0,0.27]
[1617963378090,2.9335,58421.0,58392.0,0.27]
[1617963378288,1.0,58411.0,58392.0,0.27]
[1617963378489,1.0,58409.0,58392.0,0.27]
[1617963378888,2.9335,58421.0,58392.0,0.27]
[1617963378889,1.0,58411.0,58392.0,0.27]
[1617963379189,1.0,58416.0,58405.0,0.10725655]
[1617963379391,1.0,58416.0,58405.0,0.22371655]
[1617963379591,1.0,58413.0,58406.0,0.27]
[1617963379791,1.0,58407.0,58406.0,0.27]
[1617963380191,1.0,58409.0,58406.0,0.27]
[1617963380691,1.0,58408.0,58406.0,0.27]
[1617963381092,0.10725655,58407.0,58406.0,0.27]
[1617963382794,1.10725655,58407.0,58406.0,0.27]
[1617963383195,0.10725655,58407.0,58406.0,0.27]
[1617963383395,0.10725655,58407.0,58405.0,0.10725655]
[1617963383896,0.10725655,58407.0,58406.0,0.27]
[1617963384096,0.10725655,58407.0,58406.0,0.36286]
[1617963386299,1.10725655,58407.0,58406.0,0.27]
[1617963386499,3.94465655,58407.0,58406.0,0.27]
[1617963386900,3.94465655,58407.0,58382.0,0.27]
[1617963387101,1.14937,58407.0,58389.0,0.10725655]
[1617963387302,0.14937,58407.0,58406.0,0.27]
[1617963387501,0.14937,58407.0,58390.0,0.27]
[1617963387902,1.14937,58407.0,58390.0,0.27]
[1617963388102,1.0,58398.0,58390.0,0.27]
[1617963388502,1.0,58401.0,58390.0,0.27]
[1617963388703,1.0,58403.0,58390.0,0.27]
[1617963389202,1.0,58394.0,58390.0,0.27]
[1617963389404,1.0,58395.0,58390.0,0.27]
[1617963389603,1.0,58395.0,58393.0,2.852]
[1617963389835,0.2035804,58422.0,58394.0,1.7]
[1617963390127,0.2035804,58422.0,58403.0,1.5]
[1617963390305,0.1831,58423.0,58421.0,1.0]
[1617963390503,0.0708,58423.0,58422.0,1.7]
[1617963390706,0.20347326,58464.0,58442.0,1.5]
[1617963390909,0.20347326,58464.0,58458.0,3.5797]
[1617963391107,0.20347326,58464.0,58463.0,0.10725655]
[1617963391330,0.25434158,58476.0,58463.0,0.10725655]
[1617963391331,1.01206214,58484.0,58464.0,1.5]
[1617963391521,0.002,58469.0,58466.0,1.5]
[1617963391710,0.002,58469.0,58468.0,2.6101]
[1617963392123,0.002,58469.0,58468.0,2.8801]
[1617963392575,1.01199812,58494.0,58468.0,3.8801]
[1617963392747,1.2143775,58506.0,58468.0,3.8801]
[1617963392748,1.01195176,58496.0,58468.0,5.3801]
[1617963392951,1.01195176,58496.0,58469.0,0.2]
[1617963393142,1.0,58509.0,58496.0,0.10725655]
[1617963393409,1.0,58509.0,58496.0,0.25307655]
[1617963393606,1.0,58509.0,58497.0,0.27]
[1617963393808,1.0,58511.0,58497.0,0.27]
[1617963394107,1.0,58498.0,58497.0,0.27]
[1617963394310,1.0,58502.0,58497.0,0.27]
[1617963394536,1.0,58502.0,58497.0,3.1721]
[1617963394808,1.0,58508.0,58497.0,3.28034]
[1617963395006,0.002,58509.0,58497.0,3.28034]
[1617963395258,0.002,58509.0,58502.0,0.10725655]
[1617963395707,0.002,58509.0,58503.0,0.27]
[1617963396108,0.002,58509.0,58503.0,0.26898315]
[1617963397308,0.10725655,58504.0,58503.0,0.26898315]
[1617963397508,0.10725655,58504.0,58503.0,3.24578315]
[1617963398411,0.002,58509.0,58503.0,3.24578315]
[1617963399108,0.002,58509.0,58508.0,0.10725655]
[1617963399309,0.10725655,58527.0,58508.0,0.10725655]
[1617963399608,0.002,58514.0,58508.0,0.37725655]
[1617963399809,0.10725655,58527.0,58513.0,3.3056]
[1617963400011,0.10725655,58527.0,58513.0,4.3056]
[1617963400212,0.10725655,58527.0,58514.0,0.27]
[1617963400410,1.0,58547.0,58518.0,1.0]
[1617963400629,0.1274,58563.0,58514.0,0.39935]
[1617963400630,1.0,58551.0,58521.0,1.0]
[1617963400823,1.0,58551.0,58522.0,1.0]
[1617963401015,1.0,58554.0,58524.0,1.0]
[1617963401211,1.0,58554.0,58535.0,0.10725655]
[1617963401415,0.1274,58563.0,58535.0,0.10725655]
[1617963401616,1.0,58555.0,58535.0,0.10725655]
[1617963401841,1.0,58555.0,58536.0,0.27]
[1617963402012,1.0,58562.0,58548.0,2.7124]
[1617963402312,0.50213749,58586.0,58548.0,2.7104]
[1617963402512,0.50213749,58586.0,58549.0,0.27]
[1617963402513,1.0,58565.0,58549.0,0.27]
[1617963402713,1.0,58576.0,58549.0,0.27]
[1617963402913,1.0,58583.0,58554.0,1.0]
[1617963403114,1.0,58582.0,58552.0,1.0]
[1617963403314,0.10725655,58555.0,58550.0,1.0]
[1617963403516,0.10725655,58555.0,58548.0,2.7104]
[1617963403714,0.10725655,58555.0,58553.0,0.27]
[1617963403921,0.10725655,58555.0,58550.0,0.27]
[1617963404117,0.10725655,58555.0,58548.0,2.7104]
[1617963404316,0.10725655,58555.0,58554.0,1.0]
[1617963404517,0.10725655,58555.0,58551.0,0.27]
[1617963404819,0.10725655,58555.0,58554.0,0.27]
[1617963405116,0.10725655,58555.0,58549.0,0.27]
[1617963405316,0.10725655,58555.0,58554.0,2.7262]
[1617963405649,0.10725655,58555.0,58542.0,0.37725655]
[1617963405916,0.002,58550.0,58524.0,1.0]
[1617963406194,1.0,58546.0,58523.0,2.5694]
[1617963406375,1.0,58541.0,58512.0,1.0]
[1617963406535,1.0,58540.0,58511.0,1.0]
[1617963406769,1.0,58538.0,58524.0,0.27]
[1617963406971,1.0,58535.0,58518.0,0.27]
[1617963407167,1.0,58535.0,58506.0,0.998]
[1617963407363,1.0,58535.0,58510.0,0.27]
[1617963407549,0.12955,58541.0,58507.0,0.27]
[1617963407752,0.002,58535.0,58502.0,0.10725655]
[1617963408022,0.002,58535.0,58512.0,1.0]
[1617963408222,0.002,58535.0,58513.0,1.0]
[1617963408522,0.002,58535.0,58530.0,1.0]
[1617963408725,0.002,58535.0,58530.0,0.13284]
[1617963408923,0.002,58535.0,58534.0,1.0]
[1617963409302,0.10925655,58535.0,58531.0,1.27]
[1617963409445,0.10925655,58535.0,58529.0,0.10725655]
[1617963409446,0.1082403,58535.0,58534.0,0.27]
[1617963409668,0.10725655,58535.0,58534.0,0.27]
[1617963409862,0.10725655,58535.0,58531.0,0.27]
[1617963410037,0.10725655,58535.0,58530.0,0.27]
[1617963410424,0.10725655,58535.0,58534.0,1.0]
[1617963410729,0.10725655,58535.0,58532.0,0.15118]
[1617963410924,0.10725655,58535.0,58534.0,0.27]
[1617963411426,0.10725655,58535.0,58534.0,0.10201]
[1617963411624,0.10725655,58535.0,58534.0,1.10201]
[1617963412023,0.10725655,58535.0,58534.0,1.37201]
[1617963412226,0.10725655,58535.0,58534.0,0.37201]
[1617963412425,0.10725655,58535.0,58534.0,1.37201]
[1617963412938,0.10725655,58535.0,58534.0,0.37201]
[1617963413127,0.10725655,58535.0,58534.0,1.37201]
[1617963413326,0.10725655,58535.0,58534.0,0.37201]
[1617963413525,0.10725655,58535.0,58534.0,1.37201]
[1617963414353,0.10725655,58535.0,58534.0,0.37201]
[1617963414540,0.10725655,58535.0,58534.0,1.37201]
[1617963415231,0.10725655,58535.0,58534.0,0.37201]
[1617963415430,0.0513,58604.0,58534.0,0.37201]
[1617963415632,1.0,58579.0,58534.0,1.37201]
[1617963415832,1.0,58571.0,58542.0,1.0]
[1617963416234,1.0,58564.0,58543.0,0.27]
[1617963416435,0.09402,58577.0,58543.0,0.27]
[1617963416734,1.0,58568.0,58539.0,1.0]
[1617963417235,1.0,58564.0,58540.0,0.27]
[1617963417633,1.0,58564.0,58530.0,0.27]
[1617963417634,0.14502,58564.0,58530.0,0.27]
[1617963417834,1.0,58560.0,58531.0,1.0]
[1617963418159,1.0,58561.0,58535.0,0.27]
[1617963418365,1.0,58558.0,58530.0,0.27]
[1617963418534,1.0,58555.0,58532.0,0.27]
[1617963418938,1.0,58547.0,58530.0,0.27]
[1617963419271,1.0,58547.0,58510.0,0.4795]
[1617963419272,1.0,58546.0,58533.0,0.27]
[1617963419492,1.0,58546.0,58528.0,0.27]
[1617963419667,1.0,58544.0,58528.0,0.27]
[1617963419838,1.0,58542.0,58521.0,0.27]
[1617963420137,1.0,58542.0,58516.0,0.27]
[1617963420336,1.0,58542.0,58514.0,0.27]
[1617963420642,1.0,58544.0,58514.0,1.0]
[1617963420935,1.0,58546.0,58517.0,1.0]
[1617963421136,1.0,58550.0,58520.0,1.0]
[1617963421436,5.0508,58579.0,58531.0,2.8408]
[1617963421437,1.0,58557.0,58531.0,2.8408]
[1617963421637,1.0,58557.0,58531.0,2.95518]
[1617963421836,0.0508,58579.0,58531.0,2.95518]
[1617963422135,1.0,58557.0,58532.0,0.27]
[1617963422336,1.0,58554.0,58532.0,0.27]
[1617963422536,1.0,58553.0,58532.0,0.27]
[1617963422737,0.12042,58571.0,58532.0,0.27]
[1617963422936,0.002,58547.0,58532.0,0.27]
[1617963423336,0.10725655,58533.0,58532.0,0.27]
[1617963424437,0.10725655,58533.0,58529.0,0.27]
[1617963424839,0.10725655,58533.0,58527.0,3.4788]
[1617963425239,0.10725655,58533.0,58532.0,1.0]
[1617963425441,0.10725655,58533.0,58532.0,1.11438]
[1617963425640,0.10725655,58533.0,58532.0,0.38438]
[1617963425942,0.10725655,58533.0,58532.0,1.38438]
[1617963425943,0.05644977,58533.0,58532.0,1.38438]
[1617963426241,0.05644977,58533.0,58532.0,0.38438]
[1617963426440,0.05644977,58533.0,58532.0,0.27]
[1617963427446,0.05644977,58533.0,58528.0,0.27]
[1617963427827,0.05644977,58533.0,58514.0,0.10725655]
[1617963427828,0.05644977,58533.0,58525.0,3.8484]
[1617963427941,0.05644977,58533.0,58529.0,1.0]
[1617963428141,1.0,58561.0,58532.0,1.0]
[1617963428742,1.0,58564.0,58534.0,1.0]
[1617963429012,1.0,58562.0,58533.0,1.27]
[1617963429183,1.0,58562.0,58533.0,1.0]
[1617963429444,1.0,58566.0,58536.0,1.10725655]
[1617963429742,1.0,58568.0,58538.0,1.0]
[1617963429941,1.0,58568.0,58539.0,1.0]
[1617963430293,1.0,58566.0,58539.0,0.27]
[1617963430442,1.0,58565.0,58536.0,0.10725655]
[1617963430743,1.7506,58572.0,58538.0,0.27]
[1617963430744,1.0,58563.0,58538.0,0.27]
[1617963430980,0.002,58567.0,58538.0,0.27]
[1617963431179,1.0,58557.0,58536.0,0.10725655]
[1617963431391,0.10725655,58537.0,58536.0,0.10725655]
[1617963431842,0.10725655,58537.0,58536.0,0.37725655]
[1617963433241,0.10725655,58537.0,58536.0,1.37725655]
[1617963433443,0.10725655,58537.0,58536.0,0.37725655]
[1617963433642,0.0506,58572.0,58536.0,0.37725655]
[1617963433844,0.0506,58572.0,58537.0,1.5]
[1617963434044,0.0506,58572.0,58545.0,1.0]
[1617963434445,0.0506,58572.0,58538.0,0.27]
[1617963434446,1.0,58569.0,58540.0,1.0]
[1617963434647,1.0,58569.0,58546.0,0.27]
[1617963434856,1.0,58554.0,58541.0,0.27]
[1617963435050,1.0,58547.0,58541.0,0.27]
[1617963435247,0.002,58541.0,58517.0,0.4512]
[1617963435446,0.10725655,58518.0,58517.0,0.4512]
[1617963435947,0.10725655,58518.0,58517.0,1.7212]
[1617963436246,2.7601,58543.0,58517.0,1.7212]
[1617963436452,2.7601,58543.0,58517.0,1.86726]
[1617963436747,2.7601,58543.0,58525.0,1.0]
[1617963436945,2.7601,58543.0,58526.0,1.0]
[1617963437147,2.7601,58543.0,58526.0,1.27]
[1617963437347,1.0,58557.0,58542.0,0.10725655]
[1617963437560,1.0,58559.0,58542.0,0.25075655]
[1617963437752,1.0,58559.0,58543.0,0.27]
[1617963438054,2.6111,58576.0,58543.0,0.27]
[1617963438055,1.0,58562.0,58543.0,0.27]
[1617963438248,1.0,58570.0,58543.0,0.27]
[1617963438448,1.0,58565.0,58543.0,0.27]
[1617963438747,2.6111,58576.0,58543.0,0.27]
[1617963438748,1.0,58555.0,58543.0,0.27]
[1617963439049,1.0,58559.0,58543.0,0.27]
[1617963439549,1.0,58566.0,58546.0,0.10725655]
[1617963440051,1.0,58557.0,58547.0,0.27]
[1617963440549,1.0,58553.0,58543.0,0.27]
[1617963440750,1.0,58552.0,58548.0,0.27]
[1617963440951,1.5,58567.0,58548.0,0.27]
[1617963441152,1.0,58550.0,58543.0,0.27]
[1617963441352,1.0,58567.0,58549.0,0.27]
[1617963441681,1.0,58568.0,58549.0,0.27]
[1617963441921,1.0,58568.0,58546.0,0.10725655]
[1617963441922,0.44023102,58551.0,58546.0,0.10725655]
[1617963442121,0.44023102,58551.0,58548.0,1.0]
[1617963442294,0.50022763,58552.0,58550.0,1.0]
[1617963442556,0.50022763,58552.0,58549.0,0.27]
[1617963442765,0.002,58571.0,58546.0,0.10725655]
[1617963442766,0.44019532,58551.0,58547.0,0.27]
[1617963442954,0.44019532,58551.0,58548.0,1.0]
[1617963443154,0.44019532,58551.0,58546.0,0.10725655]
[1617963443155,0.44017744,58549.0,58546.0,0.10725655]
[1617963443355,0.44017744,58549.0,58547.0,0.27]
[1617963443574,0.54741177,58550.0,58548.0,0.2]
[1617963443755,0.54741177,58550.0,58548.0,1.0]
[1617963444056,0.10725655,58550.0,58549.0,0.27]
[1617963444455,0.10725655,58550.0,58549.0,1.27]
[1617963444700,0.44012159,58555.0,58549.0,1.47]
[1617963444857,0.44012159,58555.0,58549.0,2.7]
[1617963445058,0.44012159,58555.0,58554.0,1.0]
[1617963445257,0.44012159,58555.0,58554.0,1.13007]
[1617963445559,0.44009543,58561.0,58554.0,0.50732655]
[1617963445758,0.44009543,58561.0,58554.0,1.70732655]
[1617963445958,0.44009543,58561.0,58560.0,1.0]
[1617963446258,0.44008603,58563.0,58560.0,6.0834]
[1617963446572,0.44008603,58563.0,58560.0,6.3534]
[1617963446763,0.44005871,58565.0,58560.0,5.3534]
[1617963447162,0.44005871,58565.0,58562.0,1.0]
[1617963447367,0.44003713,58566.0,58564.0,1.10725655]
[1617963447566,0.44003713,58566.0,58565.0,1.5]
[1617963447868,0.002,58571.0,58565.0,1.7]
[1617963447869,0.44002957,58568.0,58565.0,1.7]
[1617963448062,0.44002957,58568.0,58565.0,2.97]
[1617963448262,0.002,58571.0,58565.0,2.97]
[1617963448461,0.002,58571.0,58568.0,1.5]
[1617963448664,0.002,58571.0,58570.0,1.5]
[1617963448863,0.002,58571.0,58570.0,2.7]
[1617963449466,0.002,58571.0,58570.0,3.07725655]
[1617963450168,0.002,58571.0,58570.0,2.07725655]
[1617963450370,0.002,58571.0,58570.0,0.57725655]
[1617963450674,0.002,58571.0,58570.0,3.07725655]
[1617963450867,0.002,58571.0,58570.0,1.37725655]
[1617963451068,0.002,58571.0,58570.0,0.37725655]
[1617963451369,0.002,58571.0,58570.0,1.37725655]
[1617963451877,0.002,58571.0,58570.0,0.37725655]
[1617963452276,0.002,58571.0,58570.0,1.37725655]
[1617963452470,0.002,58571.0,58570.0,0.37725655]
[1617963452971,0.002,58571.0,58570.0,1.37725655]
[1617963453171,0.94626935,58571.0,58570.0,1.3762412]
[1617963453371,0.94626935,58571.0,58570.0,1.5157212]
[1617963453571,0.94626935,58571.0,58570.0,3.0157212]
[1617963453872,0.94426935,58571.0,58570.0,3.0157212]
[1617963454484,0.94426935,58571.0,58570.0,3.2157212]
[1617963454686,0.94426935,58571.0,58570.0,2.2157212]
[1617963454874,0.44200483,58571.0,58570.0,2.2157212]
[1617963455275,0.44200483,58571.0,58570.0,3.2157212]
[1617963456975,0.44200483,58571.0,58570.0,6.2066212]
[1617963457175,0.10725655,58590.0,58570.0,6.2066212]
[1617963457176,0.50222921,58574.0,58570.0,6.2066212]
[1617963457375,0.50222921,58574.0,58570.0,5.2066212]
[1617963457576,0.44196645,58571.0,58570.0,11.2066212]
[1617963457974,0.44196645,58571.0,58570.0,5.2066212]
[1617963458175,0.44196645,58571.0,58570.0,11.2066212]
[1617963458676,0.44194368,58572.0,58570.0,11.2066212]
[1617963458874,0.44194368,58572.0,58570.0,8.2157212]
[1617963459101,0.44194368,58572.0,58570.0,2.2157212]
[1617963459494,0.44194368,58572.0,58571.0,1.0]
[1617963459678,0.50219791,58575.0,58570.0,0.3762412]
[1617963459977,0.44194689,58572.0,58571.0,1.27]
[1617963460391,0.44194689,58572.0,58571.0,0.27]
[1617963460779,0.44194689,58572.0,58571.0,1.27]
[1617963460980,0.94414697,58572.0,58571.0,2.77]
[1617963461383,0.44194689,58572.0,58571.0,1.27]
[1617963461783,0.94415442,58572.0,58571.0,1.27]
[1617963462184,0.44194689,58572.0,58571.0,1.27]
[1617963462486,0.44194689,58572.0,58571.0,1.47]
[1617963462885,0.44194689,58572.0,58571.0,1.77]
[1617963463288,0.44194689,58572.0,58571.0,2.77]
[1617963463686,0.44194689,58572.0,58571.0,1.77]
[1617963464086,0.44194689,58572.0,58571.0,2.77]
[1617963464486,0.44132092,58575.0,58571.0,2.77]
[1617963464686,0.44132092,58575.0,58571.0,1.86404]
[1617963464886,0.44132092,58575.0,58571.0,2.86404]
[1617963465085,0.44132092,58575.0,58573.0,1.5]
[1617963465286,0.44132092,58575.0,58574.0,2.7]
[1617963465587,0.44132092,58575.0,58574.0,2.97]
[1617963465886,0.44132092,58575.0,58574.0,2.7]
[1617963466103,0.44132092,58575.0,58574.0,2.97]
[1617963466795,0.44132092,58575.0,58574.0,6.1024]
[1617963467189,0.44132309,58576.0,58574.0,6.1024]
[1617963467615,0.44131692,58577.0,58574.0,6.1024]
[1617963467890,0.44131692,58577.0,58576.0,1.5]
[1617963468091,0.8092952,58600.0,58576.0,2.7]
[1617963468390,0.8092952,58600.0,58576.0,3.12077]
[1617963468593,0.8092952,58600.0,58583.0,1.5]
[1617963468790,0.10725655,58600.0,58598.0,1.0]
[1617963469090,0.10725655,58600.0,58592.0,1.0]
[1617963469290,0.10725655,58600.0,58599.0,0.27]
[1617963469489,0.10725655,58600.0,58599.0,0.57725655]
[1617963469689,0.10725655,58600.0,58599.0,0.30725655]
[1617963469894,0.10725655,58600.0,58599.0,1.57725655]
[1617963470291,0.10725655,58600.0,58599.0,0.57725655]
[1617963471794,0.10725655,58600.0,58599.0,1.57725655]
[1617963471995,0.10725655,58600.0,58599.0,0.57725655]
[1617963472594,0.10725655,58600.0,58599.0,1.57725655]
[1617963472893,0.10725655,58600.0,58599.0,0.57725655]
[1617963473294,0.10725655,58600.0,58599.0,1.57725655]
[1617963473693,0.10725655,58600.0,58599.0,0.57725655]
[1617963473895,1.04856467,58600.0,58599.0,0.57725655]
[1617963474093,1.04856467,58600.0,58599.0,1.57725655]
[1617963474296,0.94130812,58600.0,58599.0,1.57624145]
[1617963474495,0.42840812,58600.0,58599.0,3.07624145]
[1617963474718,0.56074241,58606.0,58599.0,2.07624145]
[1617963474938,0.56074241,58606.0,58605.0,3.5763]
[1617963475211,0.56074241,58606.0,58605.0,3.8933249]
[1617963475343,0.12332817,58613.0,58605.0,5.3933249]
[1617963475613,0.03331901,58613.0,58611.0,0.10725655]
[1617963475921,0.09157229,58620.0,58611.0,0.10725655]
[1617963476202,1.0,58637.0,58611.0,0.10725655]
[1617963476203,1.0,58630.0,58611.0,0.10725655]
[1617963476465,1.0,58630.0,58612.0,0.27]
[1617963477196,1.5,58629.0,58612.0,0.27]
[1617963477446,1.61511,58629.0,58612.0,0.27]
[1617963477596,0.10725655,58613.0,58606.0,0.27]
[1617963477810,0.21157655,58613.0,58606.0,0.27]
[1617963478004,0.21157655,58613.0,58601.0,0.27]
[1617963478196,0.21157655,58613.0,58601.0,1.0]
[1617963478413,0.21157655,58613.0,58599.0,1.0]
[1617963478797,0.21157655,58613.0,58605.0,1.0]
[1617963478999,0.10725655,58613.0,58605.0,1.0]
[1617963479399,0.10725655,58613.0,58596.0,0.2]
[1617963479599,0.70141154,58627.0,58609.0,0.10725655]
[1617963479799,0.70141154,58627.0,58612.0,1.0]
[1617963479999,0.70141154,58627.0,58626.0,1.0]
[1617963480201,0.70137537,58630.0,58626.0,1.09884]
[1617963480400,0.70137537,58630.0,58627.0,1.0]
[1617963480602,0.70137537,58630.0,58628.0,1.0]
[1617963480902,0.70135266,58631.0,58628.0,0.27]
[1617963481203,0.70336286,58632.0,58628.0,0.27]
[1617963481401,0.70336286,58632.0,58627.0,0.27]
[1617963481601,0.70336286,58632.0,58626.0,3.2002]
[1617963481602,0.10725655,58628.0,58626.0,3.2002]
[1617963482001,0.10725655,58628.0,58627.0,0.27]
[1617963482604,0.10725655,58628.0,58627.0,1.27]
[1617963482802,0.10725655,58628.0,58627.0,0.27]
[1617963483102,0.10725655,58628.0,58627.0,0.269]
[1617963484332,0.10725655,58628.0,58627.0,0.26798523]
[1617963488210,0.10725655,58628.0,58627.0,0.36821523]
[1617963489260,0.10725655,58628.0,58627.0,1.36821523]
[1617963489511,0.10725655,58628.0,58627.0,0.36821523]
[1617963489715,0.10725655,58628.0,58627.0,0.47547178]
[1617963490539,1.16993355,58628.0,58627.0,0.26798523]
[1617963492852,1.16993355,58628.0,58586.0,2.9243]
[1617963492853,3.66993355,58628.0,58586.0,2.9243]
[1617963493222,1.0,58608.0,58586.0,2.9243]
[1617963493518,0.13638,58608.0,58588.0,1.0]
[1617963493719,0.13638,58608.0,58603.0,0.10725655]
[1617963494319,0.13638,58608.0,58567.0,2.6684]
[1617963494320,0.13638,58608.0,58604.0,0.27]
[1617963494822,0.50103758,58605.0,58591.0,0.27]
[1617963495119,0.50103809,58607.0,58587.0,1.27]
[1617963495324,0.50103809,58607.0,58580.0,1.0]
[1617963495519,0.13638,58608.0,58587.0,1.0]
[1617963495520,0.50103247,58605.0,58587.0,1.0]
[1617963495818,0.50103247,58605.0,58595.0,0.10725655]
[1617963496022,0.50102824,58606.0,58595.0,0.10725655]